bitfinex/quotes_SOLUSD_20250611
["timestamp","ask_amount","ask_price","bid_price","bid_amount"]
[1749678288363,2.27734346,161.55,161.53,37.05585264]
[1749678288584,6.18979124,161.56,161.53,37.05585264]
[1749678289122,6.18888476,161.58,161.53,37.05585264]
[1749678289271,2.27746227,161.57,161.53,37.05585264]
[1749678289474,6.18888476,161.58,161.53,38.66925264]
[1749678289475,2.27763771,161.56,161.53,38.66925264]
[1749678289790,2.27763703,161.57,161.53,38.66925264]
[1749678289977,6.18888476,161.58,161.53,38.66925264]
[1749678290162,6.18961543,161.57,161.53,38.66925264]
[1749678290361,2.27731461,161.56,161.53,20.26304886]
[1749678290865,2.27725612,161.56,161.53,20.26304886]
[1749678291385,2.27724699,161.56,161.53,20.26304886]
[1749678291586,6.18961543,161.57,161.53,20.26304886]
[1749678291787,2.27725512,161.56,161.53,20.26304886]
[1749678291975,2.27726801,161.56,161.54,0.28432314]
[1749678292170,24.5949657,161.59,161.55,18.64964886]
[1749678292373,2.27736439,161.58,161.55,18.64964886]
[1749678292583,2.27728187,161.57,161.55,18.64964886]
[1749678292765,2.27728119,161.58,161.55,18.64964886]
[1749678292962,24.5949657,161.59,161.55,18.64964886]
[1749678293168,6.18876192,161.59,161.55,18.40620378]
[1749678293993,6.18876192,161.59,161.56,18.64964886]
[1749678297889,24.5949657,161.59,161.56,18.64964886]
[1749678298899,18.40620378,161.58,161.56,18.64964886]
[1749678299068,21.66001632,161.59,161.5,18.64964886]
[1749678299278,18.40620378,161.54,161.51,0.14216157]
[1749678300073,18.40620378,161.54,161.51,0.28432314]
[1749678300806,6.19080047,161.53,161.51,0.28432314]
[1749678300979,24.59700425,161.53,161.5,18.64964886]
[1749678301182,24.59700425,161.53,161.48,18.64964886]
[1749678301402,24.59700425,161.53,161.49,0.14216157]
[1749678301604,18.40620378,161.51,161.47,30.42032449]
[1749678301802,18.40620378,161.51,161.45,1.5931]
[1749678302006,18.40620378,161.5,161.46,18.64964886]
[1749678302412,18.40620378,161.49,161.46,18.64964886]
[1749678302703,6.19271736,161.48,161.46,18.64964886]
[1749678303175,6.19271736,161.48,161.44,18.40620378]
[1749678303381,6.19271736,161.48,161.45,18.64964886]
[1749678303616,6.19271736,161.48,161.36,28.40620378]
[1749678303617,18.40620378,161.46,161.34,9.30549822]
[1749678303784,18.40620378,161.46,161.39,18.40620378]
[1749678303987,18.40620378,161.46,161.4,18.64964886]
[1749678304296,18.40620378,161.46,161.4,44.64964886]
[1749678304498,18.40620378,161.46,161.4,18.64964886]
[1749678304806,18.40620378,161.44,161.38,18.40620378]
[1749678305015,18.40620378,161.44,161.39,18.64964886]
[1749678305491,24.60007185,161.45,161.39,44.64964886]
[1749678306320,18.40620378,161.44,161.39,44.64964886]
[1749678307014,6.19463544,161.43,161.39,44.64964886]
[1749678307194,6.19463544,161.43,161.35,19.07613357]
[1749678307387,6.19463544,161.43,161.39,18.64964886]
[1749678308013,18.40620378,161.4,161.29,3.99073156]
[1749678308211,18.40620378,161.37,161.31,18.40620378]
[1749678308420,18.40620378,161.37,161.3,18.40620378]
[1749678308734,18.40620378,161.35,161.29,18.40620378]
[1749678309091,18.40620378,161.3,161.22,18.40620378]
[1749678309333,18.40620378,161.28,161.22,18.40620378]
[1749678309536,18.40620378,161.28,161.21,18.40620378]
[1749678309814,18.40620378,161.28,161.22,26.0]
[1749678310021,18.40620378,161.28,161.2,27.6571]
[1749678310324,18.40620378,161.28,161.21,18.40620378]
[1749678310522,18.40620378,161.28,161.22,18.933972]
[1749678310716,18.40620378,161.28,161.21,18.40620378]
[1749678311316,18.40620378,161.28,161.22,18.64964886]
[1749678311816,18.40620378,161.28,161.22,44.64964886]
[1749678312022,24.60672747,161.28,161.22,44.64964886]
[1749678312331,18.40620378,161.28,161.23,0.28432314]
[1749678312631,18.40620378,161.26,161.22,44.64964886]
[1749678312922,18.40620378,161.24,161.18,18.40620378]
[1749678313092,18.40620378,161.28,161.2,18.64964886]
[1749678313292,18.40620378,161.25,161.2,18.64964886]
[1749678314414,24.60775711,161.25,161.2,18.64964886]
[1749678314606,18.40620378,161.21,161.15,18.40620378]
[1749678314988,6.20155333,161.25,161.04,43.27121996]
[1749678314989,18.40620378,161.16,161.09,18.40620378]
[1749678315193,18.40620378,161.2,161.09,18.40620378]
[1749678315394,18.40620378,161.15,161.09,18.40620378]
[1749678315600,18.40620378,161.15,161.04,3.83841169]
[1749678315842,18.40620378,161.15,161.09,18.40620378]
[1749678316125,18.40620378,161.15,161.1,18.64964886]
[1749678316623,6.2038588,161.19,161.11,18.40620378]
[1749678316843,6.84,161.23,161.19,18.64964886]
[1749678317001,8.0631,161.27,161.19,18.64964886]
[1749678317002,24.6075053,161.26,161.19,18.64964886]
[1749678317201,24.6075053,161.26,161.2,18.40620378]
[1749678317517,18.40620378,161.26,161.2,18.40620378]
[1749678317824,18.40620378,161.25,161.19,18.40620378]
[1749678318026,18.40620378,161.25,161.16,19.07613357]
[1749678318207,18.40620378,161.25,161.19,18.64964886]
[1749678318605,18.40620378,161.24,161.16,19.07613357]
[1749678318804,12.75186255,161.27,161.16,37.48233735]
[1749678318805,18.40620378,161.23,161.16,37.48233735]
[1749678319306,18.40620378,161.23,161.16,49.85318866]
[1749678319307,30.77705509,161.23,161.16,49.85318866]
[1749678319613,12.75186255,161.27,161.16,49.85318866]
[1749678319814,30.77705509,161.23,161.16,49.85318866]
[1749678320323,30.77705509,161.23,161.18,0.28432314]
[1749678320922,30.77705509,161.25,161.18,31.06137823]
[1749678321118,30.77705509,161.25,161.19,49.42670395]
[1749678321423,43.52893059,161.27,161.21,18.64964886]
[1749678321610,6.2008755,161.27,161.21,49.42670395]
[1749678321807,30.77705509,161.28,161.23,18.64964886]
[1749678322007,36.97706749,161.29,161.23,18.64964886]
[1749678322627,6.19973791,161.3,161.24,18.64964886]
[1749678322828,36.976793,161.3,161.24,49.42670395]
[1749678323030,30.77705509,161.29,161.24,18.64964886]
[1749678323219,30.77705509,161.29,161.23,18.933972]
[1749678323611,6.19973791,161.3,161.23,18.933972]
[1749678323812,30.77705509,161.29,161.23,18.933972]
[1749678324012,30.77705509,161.28,161.23,18.933972]
[1749678324425,30.77705509,161.28,161.23,0.28432314]
[1749678325733,30.77705509,161.28,161.22,49.42670395]
[1749678325734,30.77705509,161.24,161.17,30.77705509]
[1749678325919,30.77705509,161.21,161.15,30.77705509]
[1749678326120,30.77705509,161.2,161.14,30.77705509]
[1749678326832,30.77705509,161.2,161.13,34.1355]
[1749678326833,30.77705509,161.21,161.16,18.933972]
[1749678327512,36.98017511,161.21,161.14,49.42670395]
[1749678327711,30.77705509,161.2,161.15,0.28432314]
[1749678327940,30.77705509,161.2,161.14,18.64964886]
[1749678328231,30.77705509,161.2,161.15,0.28432314]
[1749678328822,6.20312002,161.21,161.08,1.5058]
[1749678328823,30.77705509,161.18,161.08,1.5058]
[1749678329024,30.77705509,161.18,161.11,30.77705509]
[1749678329821,6.20462865,161.17,161.11,30.77705509]
[1749678330137,6.20462865,161.17,161.11,18.64964886]
[1749678330332,6.20462865,161.17,161.1,30.77705509]
[1749678330333,36.98168374,161.17,161.1,30.77705509]
[1749678330633,36.98168374,161.17,161.12,0.14216157]
[1749678331837,30.77705509,161.16,161.1,18.79181043]
[1749678332340,30.77705509,161.23,161.17,0.28432314]
[1749678332636,6.5041,161.26,161.13,26.0]
[1749678332637,30.77705509,161.2,161.13,56.77705509]
[1749678332834,30.77705509,161.18,161.13,18.64964886]
[1749678333034,28.35034192,161.26,161.11,44.64964886]
[1749678333035,30.77705509,161.17,161.11,44.64964886]
[1749678333231,27.62,161.21,161.09,30.77705509]
[1749678333232,30.77705509,161.16,161.09,30.77705509]
[1749678333420,27.62,161.21,161.08,1.5058]
[1749678333421,30.77705509,161.15,161.08,1.5058]
[1749678333623,30.77705509,161.15,161.09,18.64964886]
[1749678333825,30.77705509,161.16,161.09,30.77705509]
[1749678334160,64.90115509,161.17,161.1,30.77705509]
[1749678334334,64.90115509,161.17,161.12,30.77705509]
[1749678334335,6.5041,161.17,161.12,30.77705509]
[1749678334541,6.20350648,161.2,161.13,30.77705509]
[1749678334721,37.61705509,161.2,161.13,30.77705509]
[1749678335418,6.84,161.2,161.13,30.77705509]
[1749678335623,6.84,161.2,161.14,30.77705509]
[1749678336025,37.61705509,161.2,161.14,30.77705509]
[1749678336515,6.84,161.2,161.15,30.77705509]
[1749678337448,32.84,161.24,161.17,30.77705509]
[1749678337633,30.77705509,161.23,161.16,30.77705509]
[1749678337937,30.77705509,161.23,161.17,30.77705509]
[1749678338517,37.61705509,161.24,161.18,30.77705509]
[1749678338718,6.84,161.24,161.19,30.77705509]
[1749678338945,37.61705509,161.24,161.18,30.77705509]
[1749678339443,30.77705509,161.24,161.18,30.77705509]
[1749678340147,30.77705509,161.24,161.19,30.77705509]
[1749678340925,30.77705509,161.24,161.18,30.77705509]
[1749678341325,30.77705509,161.21,161.13,18.64964886]
[1749678341528,30.77705509,161.21,161.16,30.77705509]
[1749678341727,30.77705509,161.21,161.15,30.77705509]
[1749678343432,30.77705509,161.21,161.16,30.77705509]
[1749678343950,37.61705509,161.22,161.16,30.77705509]
[1749678344521,30.77705509,161.21,161.16,30.77705509]
[1749678345248,6.84,161.22,161.16,30.77705509]
[1749678345249,6.84,161.22,161.19,30.77705509]
[1749678345547,6.84,161.22,161.18,30.77705509]
[1749678346536,37.61705509,161.22,161.16,30.77705509]
[1749678347840,37.61705509,161.22,161.17,30.77705509]
[1749678348148,6.84,161.22,161.18,18.64964886]
[1749678350072,6.84,161.22,161.18,30.77705509]
[1749678353664,6.84,161.22,161.15,19.07613357]
[1749678353839,6.84,161.22,161.18,30.77705509]
[1749678355246,6.84,161.22,161.18,18.46524788]
[1749678356644,6.84,161.22,161.15,18.933972]
[1749678356845,6.84,161.22,161.18,18.46524788]
[1749678357841,6.84,161.22,161.15,18.933972]
[1749678357842,6.84,161.22,161.19,18.46524788]
[1749678367051,6.84,161.22,161.21,37.11489674]
[1749678367356,30.68875221,161.29,161.22,18.64964886]
[1749678367559,24.48864788,161.29,161.23,18.46524788]
[1749678367742,24.48864788,161.29,161.21,18.933972]
[1749678367743,6.0234,161.29,161.24,18.46524788]
[1749678367938,6.86,161.3,161.26,18.46524788]
[1749678368156,6.86,161.3,161.22,1.5955]
[1749678368157,24.94714788,161.33,161.27,18.46524788]
[1749678368361,24.94714788,161.33,161.28,18.46524788]
[1749678368362,31.14574316,161.33,161.28,18.46524788]
[1749678368739,6.86,161.34,161.29,18.46524788]
[1749678368740,24.66343323,161.34,161.29,18.46524788]
[1749678368944,24.66343323,161.34,161.26,18.64964886]
[1749678368945,6.19818535,161.34,161.3,18.46524788]
[1749678370661,6.19818535,161.34,161.26,0.28432314]
[1749678370844,6.19818535,161.34,161.3,18.46524788]
[1749678371956,6.19818535,161.34,161.29,18.46524788]
[1749678372156,24.66343323,161.34,161.29,18.46524788]
[1749678374070,6.19818535,161.34,161.29,18.46524788]
[1749678375686,6.19818535,161.34,161.3,18.46524788]
[1749678375856,18.46524788,161.35,161.3,18.46524788]
[1749678376746,6.19809098,161.34,161.3,18.46524788]
[1749678378080,6.19809098,161.34,161.31,18.64964886]
[1749678379055,24.66333886,161.34,161.3,18.64964886]
[1749678379995,18.46524788,161.35,161.3,18.46524788]
[1749678381163,6.19809098,161.34,161.3,18.46524788]
[1749678382360,18.46524788,161.35,161.3,18.46524788]
[1749678382361,6.19732275,161.36,161.3,18.46524788]
[1749678382765,6.19732275,161.36,161.31,0.28432314]
[1749678382978,18.46524788,161.35,161.31,0.28432314]
[1749678384592,24.66295505,161.35,161.31,0.28432314]
[1749678384757,24.66295505,161.35,161.26,0.14216157]
[1749678384758,18.46524788,161.33,161.26,0.14216157]
[1749678384963,18.46524788,161.32,161.29,0.28432314]
[1749678385473,6.19770717,161.35,161.29,0.28432314]
[1749678385682,18.46524788,161.31,161.29,0.28432314]
[1749678386261,24.66449628,161.31,161.26,18.64964886]
[1749678386496,6.1992484,161.31,161.26,18.64964886]
[1749678386669,6.1992484,161.31,161.27,0.28432314]
[1749678386993,24.66449628,161.31,161.27,0.28432314]
[1749678388686,24.66449628,161.31,161.23,26.0]
[1749678388687,18.46524788,161.29,161.18,1.6467]
[1749678388883,18.46524788,161.28,161.22,18.46524788]
[1749678389079,18.46524788,161.28,161.23,18.64964886]
[1749678390019,6.20116581,161.26,161.22,18.64964886]
[1749678390298,6.20116581,161.26,161.22,37.11489674]
[1749678392180,15.50062014,161.29,161.24,18.64964886]
[1749678392372,33.96586802,161.29,161.24,18.64964886]
[1749678392575,18.46524788,161.28,161.21,0.28432314]
[1749678392774,18.46524788,161.28,161.21,18.74957102]
[1749678393009,18.46524788,161.28,161.21,0.28432314]
[1749678393189,18.46524788,161.26,161.18,18.64964886]
[1749678393509,18.46524788,161.27,161.22,18.933972]
[1749678393888,18.46524788,161.27,161.22,0.28432314]
[1749678394212,6.20116581,161.26,161.22,0.28432314]
[1749678395507,6.20116581,161.26,161.23,18.64964886]
[1749678395707,6.20116581,161.26,161.25,18.64964886]
[1749678396011,1.557,161.33,161.25,37.39921988]
[1749678396012,18.46524788,161.31,161.25,37.39921988]
[1749678396205,18.46524788,161.31,161.27,18.64964886]
[1749678396206,6.19924369,161.31,161.27,18.64964886]
[1749678396403,6.19924369,161.31,161.29,18.64964886]
[1749678396913,24.6640319,161.33,161.29,18.64964886]
[1749678397234,24.6640319,161.33,161.28,37.39921988]
[1749678397596,6.19878402,161.33,161.28,37.39921988]
[1749678397796,24.6640319,161.33,161.28,37.39921988]
[1749678398901,6.19809098,161.34,161.28,37.39921988]
[1749678399118,6.19809098,161.34,161.3,18.933972]
[1749678399520,18.46524788,161.35,161.3,18.933972]
[1749678399724,6.19693871,161.37,161.3,18.933972]
[1749678399725,18.46524788,161.36,161.3,0.28432314]
[1749678399914,18.46524788,161.36,161.3,18.74957102]
[1749678400108,6.19693871,161.37,161.3,18.74957102]
[1749678400316,18.46524788,161.36,161.3,18.74957102]
[1749678400699,24.66218659,161.37,161.31,18.46524788]
[1749678400928,6.19693871,161.37,161.3,0.28432314]
[1749678401109,6.19693871,161.37,161.32,18.46524788]
[1749678401427,6.19693871,161.37,161.3,0.28432314]
[1749678401428,6.19693871,161.37,161.34,18.64964886]
[1749678402328,6.19655471,161.38,161.34,18.64964886]
[1749678402927,24.66180259,161.38,161.34,18.64964886]
[1749678403130,24.66180259,161.38,161.32,18.46524788]
[1749678403507,6.19655471,161.38,161.34,18.64964886]
[1749678404808,6.19617076,161.39,161.34,18.46524788]
[1749678405735,6.19617076,161.39,161.36,18.64964886]
[1749678410535,18.46524788,161.38,161.32,18.46524788]
[1749678411253,18.46524788,161.38,161.31,0.28432314]
[1749678411431,6.19693871,161.37,161.32,18.46524788]
[1749678411631,6.19693871,161.37,161.33,0.28432314]
[1749678411848,6.19617076,161.39,161.34,37.11489674]
[1749678412048,6.19617076,161.39,161.36,18.64964886]
[1749678412555,6.1959295,161.4,161.36,37.11489674]
[1749678413336,6.1959295,161.4,161.36,18.64964886]
[1749678414549,6.1959295,161.4,161.36,37.11489674]
[1749678415060,18.46524788,161.42,161.36,37.11489674]
[1749678415061,6.1950192,161.42,161.38,37.11489674]
[1749678415234,6.1950192,161.42,161.36,18.933972]
[1749678415436,6.1950192,161.42,161.38,18.46524788]
[1749678416548,6.19463544,161.43,161.38,18.46524788]
[1749678416857,21.68122405,161.43,161.38,18.46524788]
[1749678417543,18.46524788,161.39,161.33,18.46524788]
[1749678417862,46.00524788,161.41,161.35,18.64964886]
[1749678418561,21.68525402,161.4,161.35,18.64964886]
[1749678419058,21.68525402,161.4,161.35,37.11489674]
[1749678419758,21.68525402,161.4,161.37,18.64964886]
[1749678421155,6.19578686,161.4,161.37,18.64964886]
[1749678421345,6.19578686,161.4,161.37,37.11489674]
[1749678422566,6.1950192,161.42,161.37,37.11489674]
[1749678423455,6.1950192,161.42,161.38,18.46524788]
[1749678423659,6.1950192,161.42,161.39,18.64964886]
[1749678424585,6.19463544,161.43,161.39,18.64964886]
[1749678426465,6.19425173,161.44,161.39,18.46524788]
[1749678428073,21.67810462,161.46,161.39,18.46524788]
[1749678428272,18.46524788,161.45,161.39,18.46524788]
[1749678428979,21.67810462,161.46,161.41,37.11489674]
[1749678430890,6.19348445,161.46,161.41,37.11489674]
[1749678431188,6.19348445,161.46,161.43,18.64964886]
[1749678432892,6.19348445,161.46,161.39,26.28432314]
[1749678433097,6.19348445,161.46,161.41,18.46524788]
[1749678434499,6.19348445,161.46,161.42,18.46524788]
[1749678437194,6.19348445,161.46,161.41,0.28432314]
[1749678437384,6.19348445,161.46,161.42,18.46524788]
[1749678438495,6.19348445,161.46,161.43,18.46524788]
[1749678439912,6.19348445,161.46,161.43,18.64964886]
[1749678442003,6.19348445,161.46,161.43,18.46524788]
[1749678443901,12.99325595,161.47,161.43,18.46524788]
[1749678444204,12.99325595,161.47,161.43,18.64964886]
[1749678445110,12.99325595,161.47,161.43,18.46524788]
[1749678446785,12.99325595,161.47,161.44,18.46524788]
[1749678450820,12.99325595,161.47,161.43,18.46524788]
[1749678451428,6.8,161.47,161.43,18.46524788]
[1749678451611,6.8,161.47,161.41,0.14216157]
[1749678451813,12.99311929,161.47,161.41,0.14216157]
[1749678452016,12.99311929,161.47,161.43,18.46524788]
[1749678454313,12.99311929,161.47,161.44,18.64964886]
[1749678456025,6.19311929,161.47,161.44,18.64964886]
[1749678457141,6.19271736,161.48,161.44,18.64964886]
[1749678458171,11.78109662,161.47,161.4,18.933972]
[1749678458339,11.78109662,161.47,161.42,0.28432314]
[1749678458511,11.78109662,161.47,161.43,18.64964886]
[1749678458718,6.19271736,161.48,161.43,18.64964886]
[1749678459020,11.78109662,161.47,161.43,18.64964886]
[1749678459222,17.97381398,161.48,161.43,18.64964886]
[1749678459833,21.67451077,161.48,161.43,18.64964886]
[1749678460032,33.45560739,161.48,161.43,18.64964886]
[1749678460260,21.67451077,161.48,161.43,18.64964886]
[1749678460462,21.67451077,161.48,161.43,11.78109662]
[1749678460841,6.19271736,161.48,161.43,11.78109662]
[1749678465684,27.26198997,161.49,161.43,11.78109662]
[1749678465964,15.48089335,161.49,161.43,11.78109662]
[1749678466137,27.26198997,161.49,161.43,18.79181043]
[1749678466341,27.26198997,161.49,161.43,11.92325819]
[1749678467346,11.78109662,161.48,161.43,18.933972]
[1749678468065,27.26198997,161.49,161.43,12.06541976]
[1749678468263,27.26198997,161.49,161.43,18.933972]
[1749678469661,33.45432386,161.49,161.43,18.933972]
[1749678469876,33.45432386,161.49,161.43,0.14216157]
[1749678470066,33.45432386,161.49,161.43,18.933972]
[1749678470656,33.45432386,161.49,161.43,0.28432314]
[1749678471583,33.45432386,161.49,161.43,0.14216157]
[1749678471884,33.45432386,161.49,161.43,0.28432314]
[1749678472482,33.45432386,161.49,161.43,0.14216157]
[1749678472679,33.45432386,161.49,161.43,0.28432314]
[1749678473876,21.67322724,161.49,161.43,0.14216157]
[1749678474085,21.67322724,161.49,161.43,0.28432314]
[1749678474086,33.45432386,161.49,161.43,0.28432314]
[1749678474668,21.67322724,161.49,161.43,0.28432314]
[1749678474875,33.45432386,161.49,161.43,0.28432314]
[1749678475378,27.26198997,161.49,161.43,0.28432314]
[1749678475575,27.26198997,161.49,161.43,0.14216157]
[1749678475884,27.26198997,161.49,161.43,0.28432314]
[1749678476559,33.45432386,161.49,161.43,0.28432314]
[1749678477700,33.45432386,161.49,161.42,17.933972]
[1749678478882,15.48089335,161.49,161.42,17.933972]
[1749678479478,15.48089335,161.49,161.41,0.14216157]
[1749678479683,15.48089335,161.49,161.4,18.933972]
[1749678479684,11.78109662,161.47,161.4,18.933972]
[1749678481076,6.19348445,161.46,161.4,18.933972]
[1749678482386,6.19348445,161.46,161.36,5.90925145]
[1749678482387,11.78109662,161.44,161.36,7.3367767]
[1749678482590,11.78109662,161.43,161.4,26.0]
[1749678482774,11.78109662,161.41,161.34,48.98301294]
[1749678482975,6.19617076,161.39,161.35,18.64964886]
[1749678483160,11.78109662,161.38,161.32,19.12137332]
[1749678483362,11.78109662,161.38,161.32,13.32179662]
[1749678483591,11.78109662,161.38,161.32,39.32179662]
[1749678483801,11.78109662,161.38,161.32,13.32179662]
[1749678484173,11.78109662,161.38,161.32,1.5407]
[1749678484398,11.78109662,161.38,161.32,13.32179662]
[1749678484979,6.19693871,161.37,161.32,13.32179662]
[1749678485502,6.19693871,161.37,161.32,19.97430771]
[1749678485912,24.63054642,161.37,161.32,18.64964886]
[1749678486205,21.68302985,161.42,161.33,18.43360771]
[1749678486367,21.68302985,161.42,161.34,18.64964886]
[1749678486368,18.43360771,161.39,161.34,18.64964886]
[1749678486571,18.43360771,161.39,161.32,37.08325657]
[1749678486873,21.68302985,161.42,161.32,37.08325657]
[1749678487072,18.43360771,161.4,161.33,18.43360771]
[1749678488983,18.43360771,161.39,161.33,18.43360771]
[1749678489169,24.62970866,161.4,161.33,18.43360771]
[1749678489781,18.43360771,161.4,161.34,18.43360771]
[1749678490189,24.62959133,161.4,161.34,18.43360771]
[1749678492495,6.19505607,161.42,161.37,18.43360771]
[1749678492690,7.03242967,161.43,161.39,18.43360771]
[1749678492935,6.74,161.44,161.4,18.43360771]
[1749678493620,6.74,161.44,161.38,0.28432314]
[1749678493793,6.74,161.44,161.4,18.43360771]
[1749678494630,6.74,161.44,161.42,18.64964886]
[1749678494838,6.74,161.44,161.42,37.08325657]
[1749678495131,6.19277734,161.48,161.44,18.64964886]
[1749678495297,6.19235264,161.49,161.44,37.08325657]
[1749678495499,24.62570111,161.5,161.44,37.08325657]
[1749678496003,6.1920934,161.5,161.44,37.08325657]
[1749678496222,24.62570111,161.5,161.44,37.08325657]
[1749678496714,6.1920934,161.5,161.45,18.43360771]
[1749678497021,24.62570111,161.5,161.44,37.08325657]
[1749678497518,24.62570111,161.5,161.44,18.43360771]
[1749678498804,40.10557727,161.5,161.44,18.43360771]
[1749678499530,18.43360771,161.49,161.43,37.08325657]
[1749678499915,6.19271736,161.48,161.43,37.08325657]
[1749678501031,24.62632507,161.48,161.43,37.08325657]
[1749678501745,6.19271736,161.48,161.43,37.08325657]
[1749678502104,6.19271736,161.48,161.44,18.43360771]
[1749678505040,18.43360771,161.5,161.45,37.36757971]
[1749678505212,24.62517479,161.51,161.45,37.36757971]
[1749678506219,24.62517479,161.51,161.47,18.64964886]
[1749678506909,24.62517479,161.51,161.45,18.71793085]
[1749678509518,6.19156708,161.51,161.47,18.64964886]
[1749678512427,24.62517479,161.51,161.45,18.71793085]
[1749678512646,18.43360771,161.5,161.44,0.14216157]
[1749678512815,18.43360771,161.49,161.43,37.36757971]
[1749678513324,18.43360771,161.48,161.43,37.08325657]
[1749678513637,18.43360771,161.48,161.43,18.64964886]
[1749678514646,6.19310088,161.47,161.43,18.64964886]
[1749678516351,6.19310088,161.47,161.43,37.08325657]
[1749678517147,18.43360771,161.49,161.43,37.08325657]
[1749678519136,21.67048479,161.51,161.43,37.08325657]
[1749678519344,18.43360771,161.49,161.43,37.08325657]
[1749678521357,6.19271736,161.48,161.43,37.08325657]
[1749678526291,21.67048479,161.51,161.45,18.64964886]
[1749678526476,18.43360771,161.5,161.45,18.64964886]
[1749678527398,6.19233389,161.49,161.45,18.64964886]
[1749678528495,21.67316861,161.49,161.45,18.64964886]
[1749678528792,21.67316861,161.49,161.42,1.5394]
[1749678528987,21.67316861,161.49,161.43,30.42908436]
[1749678532392,30.95761223,161.52,161.43,30.42908436]
[1749678532591,11.7794355,161.5,161.45,18.64964886]
[1749678533687,6.19233389,161.49,161.45,18.64964886]
[1749678535799,6.19233389,161.49,161.43,18.933972]
[1749678535999,6.19233389,161.49,161.45,30.42908436]
[1749678537200,6.19118375,161.52,161.47,30.42908436]
[1749678540609,6.19118375,161.52,161.46,30.85556907]
[1749678541511,17.97061925,161.52,161.46,30.85556907]
[1749678543321,11.7794355,161.51,161.46,18.933972]
[1749678543987,21.66914313,161.52,161.46,18.933972]
[1749678544187,21.67182662,161.5,161.46,18.64964886]
[1749678544537,33.45126212,161.5,161.46,18.64964886]
[1749678547409,21.67182662,161.5,161.46,18.64964886]
[1749678549717,6.19195046,161.5,161.46,18.64964886]
[1749678551018,6.19156708,161.51,161.46,18.64964886]
[1749678552076,6.19156708,161.51,161.46,30.42908436]
[1749678554219,6.19156708,161.51,161.46,18.64964886]
[1749678556331,11.7794355,161.5,161.44,0.14216157]
[1749678557411,6.19233389,161.49,161.44,0.14216157]
[1749678557637,6.19233389,161.49,161.43,30.7134075]
[1749678560715,6.19233389,161.49,161.43,18.933972]
[1749678560918,17.97176939,161.49,161.43,30.7134075]
[1749678561417,6.19233389,161.49,161.43,30.7134075]
[1749678561927,33.45260411,161.49,161.43,30.7134075]
[1749678562110,33.45260411,161.49,161.43,18.933972]
[1749678562312,11.7794355,161.47,161.43,18.64964886]
[1749678562616,17.97291995,161.46,161.43,18.64964886]
[1749678562820,33.45663108,161.46,161.43,18.64964886]
[1749678566062,21.67719558,161.46,161.43,18.64964886]
[1749678566545,33.45663108,161.46,161.43,18.64964886]
[1749678568768,11.7794355,161.45,161.41,26.0]
[1749678569264,27.26314663,161.46,161.41,26.0]
[1749678570264,33.45663108,161.46,161.41,26.0]
[1749678571385,21.67719558,161.46,161.41,37.7794355]
[1749678571551,21.67719558,161.46,161.42,18.64964886]
[1749678572081,6.19348445,161.46,161.42,18.64964886]
[1749678575564,6.19271736,161.48,161.42,30.42908436]
[1749678575767,6.19271736,161.48,161.42,0.14216157]
[1749678575947,6.19242731,161.49,161.44,11.7794355]
[1749678576152,6.19242731,161.49,161.44,30.42908436]
[1749678576379,6.19194427,161.51,161.46,18.64964886]
[1749678576586,6.19194427,161.51,161.46,30.42908436]
[1749678576749,18.4594355,161.53,161.47,11.92159707]
[1749678576956,24.65037126,161.53,161.48,18.64964886]
[1749678579378,31.26830833,161.53,161.48,18.64964886]
[1749678579771,6.19156708,161.51,161.47,18.933972]
[1749678580688,6.19156708,161.51,161.47,18.68169571]
[1749678580899,6.19156708,161.51,161.47,18.53953414]
[1749678581490,6.19118375,161.52,161.47,18.53953414]
[1749678583085,6.19118375,161.52,161.47,37.189183]
[1749678583271,24.58855632,161.52,161.47,18.79181043]
[1749678583987,6.19118375,161.52,161.47,18.79181043]
[1749678584292,24.58855632,161.52,161.47,18.79181043]
[1749678584899,6.19118375,161.52,161.47,37.189183]
[1749678590793,12.87093697,161.53,161.48,37.189183]
[1749678590988,6.68,161.53,161.5,18.64964886]
[1749678591199,6.68,161.53,161.5,37.04702143]
[1749678592304,6.68,161.53,161.52,18.64964886]
[1749678592605,6.19118375,161.52,161.46,37.04702143]
[1749678592795,24.58855632,161.52,161.47,0.28432314]
[1749678593112,6.19118375,161.52,161.47,18.68169571]
[1749678593289,27.24,161.54,161.49,0.28432314]
[1749678593290,24.58813161,161.54,161.49,0.28432314]
[1749678593490,6.19075904,161.54,161.5,63.04702143]
[1749678593908,6.1901347,161.55,161.51,0.28432314]
[1749678594210,17.21421356,161.56,161.51,0.28432314]
[1749678594392,18.39737257,161.56,161.51,0.28432314]
[1749678595596,6.19003404,161.55,161.51,0.28432314]
[1749678599007,18.39737257,161.55,161.51,0.28432314]
[1749678599517,15.47438823,161.56,161.51,0.28432314]
[1749678599715,18.39737257,161.55,161.51,0.28432314]
[1749678600700,33.8717608,161.56,161.51,0.28432314]
[1749678600889,40.0614117,161.56,161.51,0.28432314]
[1749678601292,18.39737257,161.55,161.51,0.28432314]
[1749678601795,21.66403913,161.56,161.51,0.28432314]